lending/lending_fUSD_20250210
["ID","MTS","AMOUNT","RATE_DAILY","PERIOD"]
[352671666,1739224269514,-726.44,0.0001178,2]
[352671667,1739224269523,-1248.64,0.0001178,2]
[352671668,1739224269532,-500.0,0.0001178,2]
[352671669,1739224269544,-802.58,0.0001178,2]
[352671670,1739224269554,-517.32,0.0001178,2]
[352671671,1739224269565,-918.39,0.0001178,2]
[352671672,1739224269575,-500.0,0.0001178,2]
[352671673,1739224269584,-840.47,0.0001178,2]
[352671674,1739224269594,-500.0,0.0001178,2]
[352671675,1739224269603,-500.0,0.0001178,2]
[352671676,1739224269612,-500.0,0.0001178,2]
[352671677,1739224269622,-500.0,0.0001178,2]
[352671678,1739224269631,-590.54,0.0001178,2]
[352671679,1739224269640,-616.87,0.0001178,2]
[352671680,1739224269649,-514.99,0.0001178,2]
[352671681,1739224269659,-737.43,0.0001178,2]
[352671682,1739224269668,-782.96,0.0001178,2]
[352671683,1739224269679,-508.02,0.0001178,2]
[352671684,1739224269691,-630.68,0.0001178,2]
[352671685,1739224269700,-500.0,0.0001178,2]
[352671686,1739224269709,-924.82,0.0001178,2]
[352671687,1739224269718,-1121.97,0.0001178,2]
[352671688,1739224269727,-500.0,0.0001178,2]
[352671689,1739224269736,-500.0,0.0001178,2]
[352671690,1739224269746,-500.0,0.0001178,2]
[352671691,1739224269755,-1054.09,0.0001178,2]
[352671692,1739224269764,-658.41,0.0001178,2]
[352671693,1739224269773,-500.0,0.0001178,2]
[352671694,1739224269783,-755.05,0.0001178,2]
[352671695,1739224269792,-519.64,0.0001178,2]
[352671696,1739224269802,-500.0,0.0001178,2]
[352671697,1739224269816,-1123.32,0.0001178,2]
[352671698,1739224269826,-634.3,0.0001178,2]
[352671699,1739224269835,-1435.58,0.0001178,2]
[352671700,1739224269845,-1710.5,0.0001178,2]
[352671701,1739224269855,-675.73,0.0001178,2]
[352671702,1739224269864,-630.28,0.0001178,2]
[352671703,1739224269874,-1039.21,0.0001178,2]
[352671704,1739224269885,-588.93,0.0001178,2]
[352671705,1739224269895,-509.08,0.0001178,2]
[352671706,1739224269903,-1021.05,0.0001178,2]
[352671707,1739224269914,-778.47,0.0001178,2]
[352671708,1739224269923,-1217.8,0.0001178,2]
[352671709,1739224269932,-879.41,0.0001178,2]
[352671710,1739224269941,-863.19,0.0001178,2]
[352671711,1739224269951,-1039.43,0.0001178,2]
[352671712,1739224269960,-500.0,0.0001178,2]
[352671713,1739224269969,-2054.7,0.0001178,2]
[352671714,1739224269978,-524.25,0.0001178,2]
[352671715,1739224269987,-1323.53,0.0001178,2]
[352671716,1739224269996,-532.18,0.0001178,2]
[352671717,1739224270005,-648.52,0.0001178,2]
[352671718,1739224270014,-565.76,0.0001178,2]
[352671719,1739224270024,-1261.7,0.0001178,2]
[352671720,1739224270033,-1026.01,0.0001178,2]
[352671721,1739224270043,-2654.78,0.0001178,2]
[352671722,1739224270052,-604.2,0.0001178,2]
[352671723,1739224270061,-1136.75,0.0001178,2]
[352671724,1739224270071,-720.94,0.0001178,2]
[352671725,1739224270080,-1229.09,0.0001178,2]
[352671726,1739224270090,-500.0,0.0001178,2]
[352671727,1739224270099,-1098.69,0.0001178,2]
[352671728,1739224270109,-969.54,0.0001178,2]
[352671729,1739224270118,-909.39,0.0001178,2]
[352671730,1739224270128,-2884.06,0.0001178,2]
[352671731,1739224270138,-500.0,0.0001178,2]
[352671732,1739224270148,-1675.97,0.0001178,2]
[352671733,1739224270160,-500.0,0.0001178,2]
[352671734,1739224270170,-1262.72,0.0001178,2]
[352671735,1739224270180,-1629.18,0.0001178,2]
[352671736,1739224270190,-1021.1,0.0001178,2]
[352671737,1739224270199,-1520.76,0.0001178,2]
[352671738,1739224270209,-2746.94,0.0001178,2]
[352671739,1739224270218,-630.04,0.0001178,2]
[352671740,1739224270227,-1755.36,0.0001178,2]
[352671741,1739224270238,-1199.46,0.0001178,2]
[352671742,1739224270247,-1268.65,0.0001178,2]
[352671743,1739224270257,-1020.44,0.0001178,2]
[352671744,1739224270266,-563.26,0.0001178,2]
[352671745,1739224270276,-1033.28,0.0001178,2]
[352671746,1739224270285,-1954.3,0.0001178,2]
[352671747,1739224270295,-1294.99,0.0001178,2]
[352671748,1739224270304,-968.02,0.0001178,2]
[352671749,1739224270315,-1158.34,0.0001178,2]
[352671750,1739224270324,-2466.76,0.0001178,2]
[352671751,1739224270338,-1240.29,0.0001178,2]
[352671752,1739224270348,-1347.18,0.0001178,2]
[352671753,1739224270358,-739.42,0.0001178,2]
[352671754,1739224270368,-500.0,0.0001178,2]
[352671755,1739224270378,-1460.82,0.0001178,2]
[352671756,1739224270388,-646.49,0.0001178,2]
[352671757,1739224270397,-2218.17,0.0001178,2]
[352671758,1739224270407,-2189.11,0.0001178,2]
[352671759,1739224270416,-1188.03,0.0001178,2]
[352671760,1739224270426,-1735.43,0.0001178,2]
[352671761,1739224270435,-1793.23,0.0001178,2]
[352671762,1739224270445,-561.81,0.0001178,2]
[352671763,1739224270454,-607.13,0.0001178,2]
[352671764,1739224270463,-2379.53,0.0001178,2]
[352671765,1739224270474,-1275.33,0.0001178,2]
[352671766,1739224270486,-812.47,0.0001178,2]
[352671767,1739224270497,-1491.54,0.0001178,2]
[352671768,1739224270508,-500.0,0.0001178,2]
[352671769,1739224270518,-1725.26,0.0001178,2]
[352671770,1739224270527,-644.60354812,0.0001178,2]
[352671771,1739224270537,-2527.84,0.0001178,2]
[352671772,1739224270546,-636.22,0.0001178,2]
[352671773,1739224270556,-500.0,0.0001178,2]
[352671774,1739224270565,-969.78,0.0001178,2]
[352671775,1739224270574,-1108.98,0.0001178,2]
[352671776,1739224270584,-626.99,0.0001178,2]
[352671777,1739224270595,-3746.66,0.0001178,2]
[352671778,1739224270605,-1316.73,0.0001178,2]
[352671779,1739224270614,-1807.49,0.0001178,2]
[352671780,1739224270624,-500.0,0.0001178,2]
[352671781,1739224270633,-973.15,0.0001178,2]
[352671782,1739224270643,-1034.12,0.0001178,2]
[352671783,1739224270652,-500.0,0.0001178,2]
[352671784,1739224270663,-532.3,0.0001178,2]
[352671785,1739224270673,-1664.22,0.0001178,2]
[352671786,1739224270683,-500.0,0.0001178,2]
[352671787,1739224270693,-4180.83,0.0001178,2]
[352671788,1739224270702,-872.95,0.0001178,2]
[352671789,1739224270714,-2299.6,0.0001178,2]
[352671790,1739224270737,-1716.5,0.0001178,2]
[352671791,1739224270749,-1151.56,0.0001178,2]
[352671792,1739224270758,-2119.4,0.0001178,2]
[352671793,1739224270768,-730.26,0.0001178,2]
[352671794,1739224270778,-717.76,0.0001178,2]
[352671795,1739224270795,-500.0,0.0001178,2]
[352671796,1739224270815,-706.7,0.0001178,2]
[352671797,1739224270826,-1359.57,0.0001178,2]
[352671798,1739224270939,-2516.17,0.0001178,2]
[352671799,1739224270950,-500.0,0.0001178,2]
[352671800,1739224270959,-500.0,0.0001178,2]
[352671801,1739224270969,-1295.47,0.0001178,2]
[352671802,1739224270978,-2222.43,0.0001178,2]
[352671803,1739224270987,-1109.74,0.0001178,2]
[352671804,1739224270997,-1249.68,0.0001178,2]
[352671805,1739224271006,-1808.5,0.0001178,2]
[352671806,1739224271015,-3729.93,0.0001178,2]
[352671807,1739224271024,-500.0,0.0001178,2]
[352671808,1739224271033,-745.65,0.0001178,2]
[352671809,1739224271042,-551.13,0.0001178,2]
[352671810,1739224271052,-753.98,0.0001178,2]
[352671811,1739224271061,-836.22,0.0001178,2]
[352671812,1739224271070,-1028.03,0.0001178,2]
[352671813,1739224271079,-1434.92,0.0001178,2]
[352671814,1739224271089,-735.27,0.0001178,2]
[352671815,1739224271098,-738.65,0.0001178,2]
[352671816,1739224271107,-1822.7,0.0001178,2]
[352671817,1739224271116,-517.86,0.0001178,2]
[352671818,1739224271126,-2142.93,0.0001178,2]
[352671819,1739224271135,-605.12,0.0001178,2]
[352671820,1739224271145,-1213.49,0.0001178,2]
[352671821,1739224271155,-1360.95,0.0001178,2]
[352671822,1739224271164,-500.0,0.0001178,2]
[352671823,1739224271173,-1311.97,0.0001178,2]
[352671824,1739224271182,-1666.23,0.0001178,2]
[352671825,1739224271191,-1092.68,0.0001178,2]
[352671826,1739224271201,-1361.38,0.0001178,2]
[352671827,1739224271210,-1019.17,0.0001178,2]
[352671828,1739224271218,-1625.8,0.0001178,2]
[352671829,1739224271227,-1036.68,0.0001178,2]
[352671830,1739224271236,-172.90783744,0.00011817,2]
[352671831,1739224271246,-206.0,0.0001182,2]
[352671832,1739224271255,-1000.0,0.00011821,2]
[352671833,1739224271264,-500.0,0.00011821,2]
[352671834,1739224271273,-1529.6,0.00011821,2]
[352671835,1739224271283,-1600.09,0.00011821,2]
[352671836,1739224271292,-1272.17,0.00011821,2]
[352671837,1739224271302,-1267.14,0.00011821,2]
[352671838,1739224271311,-4013.57,0.00011821,2]
[352671839,1739224271320,-5343.57,0.00011821,2]
[352671840,1739224271330,-1368.23,0.00011821,2]
[352671841,1739224271339,-1082.65,0.00011821,2]
[352671842,1739224271349,-1006.39,0.00011821,2]
[352671843,1739224271359,-1788.33,0.00011821,2]
[352671844,1739224271368,-500.0,0.00011821,2]
[352671845,1739224271378,-839.95,0.00011821,2]
[352671846,1739224271388,-1458.05,0.00011821,2]
[352671847,1739224271398,-1681.0,0.00011821,2]
[352671848,1739224271407,-1359.46,0.00011821,2]
[352671849,1739224271417,-1298.48,0.00011821,2]
[352671850,1739224271427,-500.0,0.00011821,2]
[352671851,1739224271436,-1548.82,0.00011821,2]
[352671852,1739224271446,-1866.56,0.00011821,2]
[352671853,1739224271455,-250.0,0.00011856,2]
[352671854,1739224271465,-151.67941227,0.000119,2]
[352671855,1739224271474,-212.68816798,0.00011906,2]
[352671856,1739224271484,-212.68816798,0.00011906,2]
[352671857,1739224271494,-666.0,0.00011916,2]
[352671858,1739224271503,-634.56,0.00011916,2]
[352671859,1739224271513,-270.61866086,0.00011916,3]
[352671860,1739224271528,-418722.44152164,0.00011916,3]
[352671861,1739224271798,-152897.85133328,0.00011916,3]
[352671862,1739224271813,-5132.2190332,0.00011916,3]
[352671863,1739224271825,-2112.7,0.00011916,3]
[352671864,1739224271837,-777.741585,0.00011916,3]
[352671865,1739224271849,-3759.5482,0.00011916,3]
[352671866,1739224271860,-2385.91333527,0.00011916,3]
[352671867,1739224271938,-5062.64641841,0.00011916,3]
[352671868,1739224271950,-1200.0,0.00011916,3]
[352671869,1739224271968,-1032.27037617,0.00011916,3]
[352671870,1739224271979,-313.06330969,0.00011916,3]
[352671871,1739224271990,-792.6859962,0.00011916,3]
[352671872,1739224272001,-4080.8776875,0.00011916,3]
[352671873,1739224272013,-1346.60363188,0.00011916,3]
[352671874,1739224293136,-5000.0,8.973e-05,2]
[352671875,1739224331843,-420.02322856,0.00010958,2]
[352671876,1739224331871,-500.0,0.00010958,2]
[352671877,1739224331896,-500.0,0.00010958,2]
[352671878,1739224331923,-500.0,0.00010958,2]
[352671879,1739224331948,-500.0,0.00010958,2]
[352671880,1739224331975,-243.57105237,0.00010958,2]
[352671881,1739224332001,-854.52,0.00010958,2]
[352671882,1739224332028,-310.00717578,0.00010958,2]
[352671883,1739224332054,-500.0,0.00010958,2]
[352671884,1739224332081,-500.0,0.00010958,2]
[352671885,1739224332108,-969.16,0.00010958,2]
[352671886,1739224332135,-686.75,0.00010958,2]
[352671887,1739224332161,-500.0,0.00010958,2]
[352671888,1739224332186,-500.0,0.00010958,2]
[352671889,1739224332213,-2042.87,0.00010958,2]
[352671890,1739224332240,-500.0,0.00010958,2]
[352671891,1739224332267,-617.3,0.00010958,2]
[352671892,1739224332294,-500.0,0.00010958,2]
[352671893,1739224332322,-778.23,0.00010958,2]
[352671894,1739224332349,-500.0,0.00010958,2]
[352671895,1739224332375,-500.0,0.00010958,2]
[352671896,1739224332402,-1187.15,0.00010958,2]
[352671897,1739224332428,-531.59,0.00010958,2]
[352671898,1739224332457,-1657.48,0.00010958,2]
[352671899,1739224332485,-1077.21,0.00010958,2]
[352671900,1739224332514,-500.0,0.00010958,2]
[352671901,1739224332541,-941.64,0.00010958,2]
[352671902,1739224332567,-500.0,0.00010958,2]
[352671903,1739224332594,-766.88,0.00010958,2]
[352671904,1739224332620,-690.34,0.00010958,2]
[352671905,1739224332647,-1243.38,0.00010958,2]
[352671906,1739224332673,-500.0,0.00010958,2]
[352671907,1739224332699,-500.0,0.00010958,2]
[352671908,1739224332726,-281.89854329,0.00010958,2]
[352671909,1739224482034,1878.58592829,0.0002,120]
[352671910,1739224530452,1015.57,8.219e-05,2]
[352671926,1739225432157,-150.0,9.021e-05,2]
[352671927,1739225432167,-150.0,9.369e-05,2]
[352671928,1739225432176,-150.0,9.582e-05,2]
[352671929,1739225432186,-150.0,9.716e-05,2]
[352671930,1739225432195,-189.17,9.726e-05,2]
[352671931,1739225432205,-150.0,9.727e-05,2]
[352671932,1739225432216,-864.72532184,9.727e-05,2]
[352671933,1739225432225,-268.16,9.767e-05,2]
[352671934,1739225432235,-141.42861516,9.767e-05,2]
[352671935,1739225432246,-858.57138484,9.767e-05,2]
[352671936,1739225432255,-150.0,9.923e-05,2]
[352671937,1739225432264,-150.0,0.0001,2]
[352671938,1739225432273,-150.0,0.00010028,2]
[352671939,1739225432282,-150.0,0.00010123,2]
[352671940,1739225432291,-313.86,0.00010137,2]
[352671941,1739225432300,-150.0,0.00010345,2]
[352671942,1739225432309,-185.33,0.00010351,2]
[352671943,1739225432319,-150.0,0.00010353,2]
[352671944,1739225432328,-1015.57,0.00010464,2]
[352671945,1739225432337,-150.0,0.00010487,2]
[352671946,1739225432346,-150.0,0.00010628,2]
[352671947,1739225432355,-150.0,0.00010672,2]
[352671948,1739225432365,-150.0,0.00010777,2]
[352671949,1739225432373,-150.0,0.0001079,2]
[352671950,1739225432383,-150.0,0.00010828,2]
[352671951,1739225432392,-150.0,0.00010828,2]
[352671952,1739225432401,-510.73,0.0001083,2]
[352671953,1739225432411,-2134.111456,0.00010834,2]
[352671954,1739225432420,-2134.111456,0.00010843,2]
[352671955,1739225432429,-150.0,0.0001086,2]
[352671956,1739225432438,-2134.111456,0.00010863,2]
[352671957,1739225432447,-2134.111456,0.00010885,2]
[352671958,1739225432456,-150.0,0.000109,2]
[352671959,1739225432465,-320.07820234,0.000109,2]
[352671960,1739225432474,-150.0,0.00010918,2]
[352671961,1739225432483,-150.0,0.00010951,2]
[352671962,1739225432493,-497.72,0.00010957,2]
[352671963,1739225432501,-18.48438975,0.00010958,2]
[352672005,1739225432942,-481.51561025,0.00010958,2]
[352672007,1739225432952,-319.12874135,0.00010958,2]
[352672010,1739225432963,-180.87125865,0.00010958,2]
[352672012,1739225432972,-500.0,0.00010958,2]
[352672014,1739225432981,-296.95874135,0.00010958,2]
[352672016,1739225432997,-203.04125865,0.00010958,2]
[352672018,1739225433006,-48.32874435,0.00010958,2]
[352672020,1739225433018,-451.67125565,0.00010958,2]
[352672022,1739225433027,-500.0,0.00010958,2]
[352672024,1739225433037,-407.5287444,0.00010958,2]
[352672028,1739225433067,-92.4712556,0.00010958,2]
[352672030,1739225433077,-500.0,0.00010958,2]
[352672032,1739225433087,-500.0,0.00010958,2]
[352672034,1739225433096,-500.0,0.00010958,2]
[352672036,1739225433106,-500.0,0.00010958,2]
[352672038,1739225433115,-500.0,0.00010958,2]
[352672039,1739225433125,-500.0,0.00010958,2]
[352672040,1739225433137,-500.0,0.00010958,2]
[352672041,1739225433147,-500.0,0.00010958,2]
[352672042,1739225433156,-500.0,0.00010958,2]
[352672043,1739225433165,-500.0,0.00010958,2]
[352672044,1739225433175,-508.64,0.00010958,2]
[352672045,1739225433184,-500.0,0.00010958,2]
[352672046,1739225433194,-500.0,0.00010958,2]
[352672047,1739225433203,-500.0,0.00010958,2]
[352672048,1739225433215,-500.0,0.00010958,2]
[352672049,1739225433224,-500.0,0.00010958,2]
[352672050,1739225433233,-500.0,0.00010958,2]
[352672051,1739225433243,-500.0,0.00010958,2]
[352672052,1739225433251,-551.56,0.00010958,2]
[352672053,1739225433261,-500.0,0.00010958,2]
[352672054,1739225433270,-500.0,0.00010958,2]
[352672055,1739225433279,-552.77,0.00010958,2]
[352672056,1739225433289,-500.0,0.00010958,2]
[352672057,1739225433298,-500.0,0.00010958,2]
[352672058,1739225433307,-500.0,0.00010958,2]
[352672059,1739225433316,-500.0,0.00010958,2]
[352672060,1739225433326,-500.0,0.00010958,2]
[352672061,1739225433336,-551.02,0.00010958,2]
[352672062,1739225433346,-500.0,0.00010958,2]
[352672063,1739225433355,-500.0,0.00010958,2]
[352672064,1739225433364,-500.0,0.00010958,2]
[352672065,1739225433373,-784.62,0.00010958,2]
[352672066,1739225433383,-500.0,0.00010958,2]
[352672067,1739225433392,-500.0,0.00010958,2]
[352672068,1739225433401,-500.0,0.00010958,2]
[352672069,1739225433410,-500.0,0.00010958,2]
[352672070,1739225433419,-634.68,0.00010958,2]
[352672071,1739225433429,-624.33,0.00010958,2]
[352672072,1739225433438,-500.0,0.00010958,2]
[352672073,1739225433448,-585.55,0.00010958,2]
[352672074,1739225433459,-610.32,0.00010958,2]
[352672075,1739225433468,-500.0,0.00010958,2]
[352672076,1739225433477,-530.74,0.00010958,2]
[352672077,1739225433487,-500.0,0.00010958,2]
[352672078,1739225433496,-500.0,0.00010958,2]
[352672079,1739225433505,-500.0,0.00010958,2]
[352672080,1739225433514,-500.0,0.00010958,2]
[352672081,1739225433523,-500.0,0.00010958,2]
[352672082,1739225433532,-500.0,0.00010958,2]
[352672083,1739225433541,-664.52,0.00010958,2]
[352672084,1739225433550,-500.0,0.00010958,2]
[352672085,1739225433559,-500.0,0.00010958,2]
[352672086,1739225433569,-947.71,0.00010958,2]
[352672087,1739225433578,-567.72,0.00010958,2]
[352672088,1739225433587,-512.62,0.00010958,2]
[352672089,1739225433596,-500.0,0.00010958,2]
[352672090,1739225433605,-610.8,0.00010958,2]
[352672091,1739225433614,-500.0,0.00010958,2]
[352672092,1739225433623,-500.0,0.00010958,2]
[352672093,1739225433633,-744.9,0.00010958,2]
[352672094,1739225433642,-500.0,0.00010958,2]
[352672095,1739225433651,-500.0,0.00010958,2]
[352672096,1739225433663,-500.0,0.00010958,2]
[352672097,1739225433672,-500.0,0.00010958,2]
[352672098,1739225433682,-500.0,0.00010958,2]
[352672099,1739225433691,-500.0,0.00010958,2]
[352672100,1739225433700,-500.0,0.00010958,2]
[352672101,1739225433709,-500.0,0.00010958,2]
[352672102,1739225433719,-500.0,0.00010958,2]
[352672103,1739225433729,-500.0,0.00010958,2]
[352672104,1739225433739,-500.0,0.00010958,2]
[352672105,1739225433750,-500.0,0.00010958,2]
[352672106,1739225433759,-500.0,0.00010958,2]
[352672107,1739225433769,-500.0,0.00010958,2]
[352672108,1739225433778,-500.0,0.00010958,2]
[352672109,1739225433788,-500.0,0.00010958,2]
[352672110,1739225433797,-500.0,0.00010958,2]
[352672111,1739225433807,-564.01,0.00010958,2]
[352672112,1739225433817,-669.33,0.00010958,2]
[352672113,1739225433827,-500.0,0.00010958,2]
[352672114,1739225433836,-696.66,0.00010958,2]
[352672115,1739225433846,-500.0,0.00010958,2]
[352672116,1739225433856,-500.0,0.00010958,2]
[352672117,1739225433866,-276.16121092,0.00010958,2]
[352672118,1739225433876,-818.86,0.00010958,2]
[352672119,1739225433886,-559.31228933,0.00010958,2]
[352672120,1739225433896,-500.0,0.00010958,2]
[352672121,1739225433906,-500.0,0.00010958,2]
[352672122,1739225433915,-500.0,0.00010958,2]
[352672123,1739225433926,-509.44,0.00010958,2]
[352672124,1739225433936,-500.0,0.00010958,2]
[352672125,1739225433946,-500.0,0.00010958,2]
[352672126,1739225433955,-500.0,0.00010958,2]
[352672127,1739225433966,-500.0,0.00010958,2]
[352672128,1739225433976,-500.78828581,0.00010958,2]
[352672129,1739225433987,-609.38,0.00010958,2]
[352672130,1739225433996,-500.0,0.00010958,2]
[352672131,1739225434006,-500.0,0.00010958,2]
[352672132,1739225434015,-737.42,0.00010958,2]
[352672133,1739225434025,-500.0,0.00010958,2]
[352672134,1739225434035,-1083.17,0.00010958,2]
[352672135,1739225434045,-797.97,0.00010958,2]
[352672136,1739225434055,-595.09,0.00010958,2]
[352672137,1739225434064,-500.0,0.00010958,2]
[352672138,1739225434074,-500.0,0.00010958,2]
[352672139,1739225434083,-500.0,0.00010958,2]
[352672140,1739225434093,-500.0,0.00010958,2]
[352672141,1739225434102,-500.0,0.00010958,2]
[352672142,1739225434112,-500.0,0.00010958,2]
[352672143,1739225434122,-892.79,0.00010958,2]
[352672144,1739225434134,-536.42,0.00010958,2]
[352672145,1739225434145,-500.0,0.00010958,2]
[352672146,1739225434155,-500.0,0.00010958,2]
[352672147,1739225434164,-500.0,0.00010958,2]
[352672148,1739225434175,-729.44,0.00010958,2]
[352672149,1739225434184,-500.0,0.00010958,2]
[352672150,1739225434194,-500.0,0.00010958,2]
[352672151,1739225434204,-884.23,0.00010958,2]
[352672152,1739225434215,-773.11,0.00010958,2]
[352672153,1739225434224,-568.25,0.00010958,2]
[352672154,1739225434234,-500.0,0.00010958,2]
[352672155,1739225434245,-571.51,0.00010958,2]
[352672156,1739225434254,-675.23,0.00010958,2]
[352672157,1739225434264,-590.7,0.00010958,2]
[352672158,1739225434274,-500.0,0.00010958,2]
[352672159,1739225434284,-500.0,0.00010958,2]
[352672160,1739225434294,-789.4,0.00010958,2]
[352672161,1739225434303,-500.0,0.00010958,2]
[352672162,1739225434313,-500.0,0.00010958,2]
[352672163,1739225434322,-500.0,0.00010958,2]
[352672164,1739225434332,-500.0,0.00010958,2]
[352672165,1739225434342,-500.0,0.00010958,2]
[352672166,1739225434352,-500.0,0.00010958,2]
[352672167,1739225434362,-918.56,0.00010958,2]
[352672168,1739225434372,-882.71,0.00010958,2]
[352672169,1739225434382,-500.0,0.00010958,2]
[352672170,1739225434393,-648.93,0.00010958,2]
[352672171,1739225434403,-622.26,0.00010958,2]
[352672172,1739225434413,-500.0,0.00010958,2]
[352672173,1739225434423,-500.0,0.00010958,2]
[352672174,1739225434432,-500.0,0.00010958,2]
[352672175,1739225434443,-767.01,0.00010958,2]
[352672176,1739225434453,-907.69,0.00010958,2]
[352672177,1739225434462,-616.92,0.00010958,2]
[352672178,1739225434472,-500.0,0.00010958,2]
[352672179,1739225434482,-500.0,0.00010958,2]
[352672180,1739225434491,-359.69193747,0.00010958,2]
[352672181,1739225434501,-500.0,0.00010958,2]
[352672182,1739225434511,-685.09,0.00010958,2]
[352672183,1739225434520,-500.0,0.00010958,2]
[352672184,1739225434530,-500.0,0.00010958,2]
[352672185,1739225434539,-579.45,0.00010958,2]
[352672186,1739225434549,-500.0,0.00010958,2]
[352672187,1739225434560,-500.0,0.00010958,2]
[352672188,1739225434570,-500.0,0.00010958,2]
[352672189,1739225434581,-500.0,0.00010958,2]
[352672190,1739225434591,-639.89,0.00010958,2]
[352672191,1739225434600,-500.0,0.00010958,2]
[352672192,1739225434610,-500.0,0.00010958,2]
[352672193,1739225434620,-500.0,0.00010958,2]
[352672194,1739225434629,-500.0,0.00010958,2]
[352672195,1739225434639,-817.19,0.00010958,2]
[352672196,1739225434648,-500.0,0.00010958,2]
[352672197,1739225434659,-500.0,0.00010958,2]
[352672198,1739225434668,-500.0,0.00010958,2]
[352672199,1739225434679,-500.0,0.00010958,2]
[352672200,1739225434688,-500.0,0.00010958,2]
[352672201,1739225434698,-500.0,0.00010958,2]
[352672202,1739225434708,-500.0,0.00010958,2]
[352672203,1739225434717,-500.0,0.00010958,2]
[352672204,1739225434727,-500.0,0.00010958,2]
[352672205,1739225434736,-500.0,0.00010958,2]
[352672206,1739225434745,-650.86,0.00010958,2]
[352672207,1739225434754,-500.0,0.00010958,2]
[352672208,1739225434764,-500.0,0.00010958,2]
[352672209,1739225434774,-633.04,0.00010958,2]
[352672210,1739225434784,-575.43,0.00010958,2]
[352672211,1739225434795,-703.02,0.00010958,2]
[352672212,1739225434804,-892.48,0.00010958,2]
[352672213,1739225434814,-645.31,0.00010958,2]
[352672214,1739225434824,-543.44,0.00010958,2]
[352672215,1739225434834,-500.0,0.00010958,2]
[352672216,1739225434844,-500.0,0.00010958,2]
[352672217,1739225434853,-638.78,0.00010958,2]
[352672218,1739225434863,-500.0,0.00010958,2]
[352672219,1739225434873,-500.0,0.00010958,2]
[352672220,1739225434883,-500.0,0.00010958,2]
[352672221,1739225434893,-2070.12,0.00010958,2]
[352672222,1739225434902,-521.61,0.00010958,2]
[352672223,1739225434912,-941.52,0.00010958,2]
[352672224,1739225434921,-500.0,0.00010958,2]
[352672225,1739225434931,-500.0,0.00010958,2]
[352672226,1739225434940,-1412.05,0.00010958,2]
[352672227,1739225434949,-1157.0,0.00010958,2]
[352672228,1739225434959,-673.868315,0.00010958,2]
[352672229,1739225434968,-889.58,0.00010958,2]
[352672230,1739225434977,-736.1,0.00010958,2]
[352672231,1739225434986,-500.0,0.00010958,2]
[352672232,1739225434995,-1037.28,0.00010958,2]
[352672233,1739225435005,-882.1,0.00010958,2]
[352672234,1739225435014,-706.25,0.00010958,2]
[352672235,1739225435024,-693.658162,0.00010958,2]
[352672236,1739225435033,-500.0,0.00010958,2]
[352672237,1739225435043,-889.94,0.00010958,2]
[352672238,1739225435052,-1045.53,0.00010958,2]
[352672239,1739225435061,-889.48,0.00010958,2]